bitfinex/quotes_SOLUSD_20220113
["timestamp","ask_amount","ask_price","bid_price","bid_amount"]
[1642039114760,8.673,149.67,149.6,24.6896]
[1642039114960,1.89928047,149.68,149.61,23.44825928]
[1642039115159,1.89928047,149.67,149.62,22.964]
[1642039115559,1.89928047,149.67,149.63,0.26]
[1642039116161,0.25,149.67,149.63,0.26]
[1642039116364,0.25,149.69,149.62,22.964]
[1642039116564,2.672,149.66,149.59,1.88858765]
[1642039116765,0.25,149.66,149.59,1.88858765]
[1642039116966,18.433,149.65,149.59,1.88858765]
[1642039117165,18.683,149.65,149.59,1.88858765]
[1642039117364,18.683,149.65,149.57,1.88858765]
[1642039117565,10.0268,149.64,149.57,1.88858765]
[1642039117767,12.173,149.63,149.57,1.88858765]
[1642039117964,18.433,149.63,149.57,1.88858765]
[1642039118165,18.683,149.63,149.57,1.88858765]
[1642039118767,18.683,149.63,149.55,1.88858765]
[1642039118964,10.0313,149.6,149.55,1.88858765]
[1642039119166,10.2813,149.6,149.55,1.88858765]
[1642039119366,6.26,149.59,149.55,1.88858765]
[1642039119768,6.51,149.59,149.55,1.88858765]
[1642039119965,0.51,149.59,149.55,1.88858765]
[1642039120172,6.0,149.58,149.53,97.8635]
[1642039120365,0.51,149.59,149.53,97.8635]
[1642039120765,0.26,149.59,149.53,97.8635]
[1642039120966,10.0314,149.58,149.53,97.8635]
[1642039121265,10.2814,149.58,149.53,97.8635]
[1642039121467,6.26,149.57,149.53,97.8635]
[1642039121766,6.26,149.57,149.53,73.1946]
[1642039121967,6.26,149.57,149.52,26.6141]
[1642039122168,0.26,149.57,149.52,26.8641]
[1642039122366,6.0,149.56,149.52,26.8641]
[1642039122569,0.26,149.57,149.52,26.8641]
[1642039122766,0.26,149.55,149.52,26.8641]
[1642039122965,10.2917,149.57,149.52,26.8641]
[1642039123366,6.0,149.56,149.52,26.8641]
[1642039123765,0.26,149.55,149.52,26.8641]
[1642039123969,0.26,149.55,149.53,3.53380096]
[1642039126975,0.26,149.55,149.53,3.31588974]
[1642039129803,3.00851018,149.55,149.53,3.31588974]
[1642039130203,3.25851018,149.55,149.5,2.674]
[1642039130405,6.0,149.54,149.5,2.674]
[1642039130808,0.26,149.53,149.5,2.674]
[1642039131010,6.26,149.53,149.5,2.674]
[1642039131709,0.51,149.53,149.5,2.674]
[1642039131913,6.0,149.52,149.48,97.041]
[1642039132107,0.25,149.53,149.48,97.041]
[1642039132708,0.26,149.55,149.48,97.041]
[1642039132909,10.0344,149.53,149.47,93.2]
[1642039133112,8.674,149.52,149.43,1.88858765]
[1642039133309,8.934,149.52,149.42,501.03789881]
[1642039133509,8.934,149.52,149.42,1.88858765]
[1642039133510,9.184,149.52,149.42,1.88858765]
[1642039134208,9.184,149.52,149.42,79.79268765]
[1642039134409,9.184,149.52,149.42,77.9041]
[1642039134612,9.184,149.52,149.42,80.5801]
[1642039134808,19.2196,149.52,149.42,80.5801]
[1642039135408,0.26,149.51,149.42,80.8301]
[1642039135810,0.26,149.51,149.43,0.26]
[1642039136011,0.26,149.51,149.44,2.676]
[1642039136409,10.2956,149.51,149.44,2.676]
[1642039136810,10.5456,149.51,149.44,2.676]
[1642039137410,10.5456,149.51,149.43,36.9853]
[1642039138011,6.0,149.5,149.43,36.9853]
[1642039138410,0.26,149.49,149.43,36.9853]
[1642039139111,2.676,149.48,149.42,77.9041]
[1642039139510,2.926,149.48,149.42,77.9041]
[1642039139711,12.9636,149.48,149.42,77.9041]
[1642039139910,0.26,149.47,149.42,77.9041]
[1642039141313,10.2983,149.47,149.42,77.9041]
[1642039141713,10.5483,149.47,149.42,77.9041]
[1642039141912,0.51,149.47,149.42,77.9041]
[1642039142113,0.26,149.49,149.42,78.1541]
[1642039142312,0.26,149.49,149.43,2.676]
[1642039143913,10.2974,149.49,149.42,80.5801]
[1642039144117,6.0,149.48,149.42,80.5801]
[1642039144319,6.0,149.48,149.42,77.9041]
[1642039144515,0.26,149.47,149.42,77.9041]
[1642039145416,0.25,149.48,149.42,77.9041]
[1642039145615,0.26,149.49,149.42,77.9041]
[1642039145816,10.0384,149.47,149.42,77.9041]
[1642039146315,10.2884,149.47,149.42,77.9041]
[1642039147419,10.2972,149.49,149.42,77.9041]
[1642039147619,9.5,149.53,149.43,2.676]
[1642039147825,12.176,149.55,149.44,52.53771849]
[1642039148019,12.176,149.55,149.45,2.934]
[1642039148220,12.176,149.55,149.45,3.184]
[1642039148722,22.4595,149.55,149.45,2.934]
[1642039148920,22.4595,149.55,149.45,3.184]
[1642039148921,6.26,149.54,149.45,3.184]
[1642039149321,6.51,149.54,149.45,3.184]
[1642039150021,6.25,149.54,149.45,3.184]
[1642039150221,12.176,149.55,149.46,6.0]
[1642039150428,9.5,149.55,149.46,23.8417]
[1642039150622,6.0,149.54,149.46,24.0917]
[1642039151023,70.52405715,149.59,149.45,2.674]
[1642039151024,9.5,149.55,149.45,2.674]
[1642039151227,71.29877668,149.54,149.42,80.5781]
[1642039151424,76.58,149.53,149.42,82.46668765]
[1642039151624,8.676,149.52,149.42,79.79268765]
[1642039152024,0.26,149.51,149.42,79.79268765]
[1642039152224,0.26,149.51,149.43,26.9207]
[1642039152424,0.26,149.51,149.43,27.1807]
[1642039152624,0.26,149.51,149.43,37.4661]
[1642039153325,16.0352,149.52,149.43,37.4661]
[1642039154427,10.0352,149.52,149.43,37.4661]
[1642039154627,9.5,149.53,149.43,37.4661]
[1642039155056,9.75,149.53,149.43,37.4661]
[1642039156028,9.5,149.53,149.43,37.4661]
[1642039156230,9.75,149.53,149.43,104.2861]
[1642039156428,9.5,149.53,149.43,104.2861]
[1642039156928,9.75,149.53,149.43,104.2861]
[1642039157127,9.75,149.53,149.43,106.17468765]
[1642039157727,9.75,149.53,149.43,39.10468765]
[1642039157927,6.26,149.52,149.43,39.35468765]
[1642039158132,9.186,149.52,149.43,39.35468765]
[1642039158531,6.51,149.52,149.43,39.35468765]
[1642039158930,0.51,149.52,149.43,39.35468765]
[1642039159131,6.0,149.51,149.43,37.4661]
[1642039159334,0.26,149.52,149.43,37.4661]
[1642039159835,10.2952,149.52,149.43,37.4661]
[1642039160034,6.0,149.51,149.43,13.2214]
[1642039160236,6.25,149.51,149.43,13.2214]
[1642039160434,0.25,149.51,149.43,13.2214]
[1642039160738,0.25,149.51,149.43,15.10998765]
[1642039161332,0.26,149.53,149.43,15.10998765]
[1642039161333,6.26,149.53,149.43,15.10998765]
[1642039161640,2.674,149.52,149.43,15.10998765]
[1642039161833,19.2204,149.53,149.45,10.0344]
[1642039162033,16.2944,149.53,149.46,2.934]
[1642039162233,16.2944,149.53,149.46,25.5629]
[1642039162560,16.2944,149.53,149.46,2.934]
[1642039162733,16.2944,149.53,149.46,2.674]
[1642039163335,16.2944,149.53,149.45,12.7084]
[1642039163534,12.7091,149.52,149.44,14.59768765]
[1642039163735,12.9591,149.52,149.44,1.88858765]
[1642039163939,0.26,149.51,149.44,1.88858765]
[1642039164139,0.26,149.51,149.44,2.13858765]
[1642039164438,6.26,149.51,149.44,0.25]
[1642039164638,6.51,149.51,149.43,29.79638765]
[1642039165141,16.5457,149.51,149.43,39.83198765]
[1642039166339,16.5457,149.51,149.44,0.26]
[1642039170066,16.5457,149.51,149.44,10.2951]
[1642039173170,16.5457,149.51,149.44,10.5451]
[1642039173573,16.5457,149.51,149.44,10.2951]
[1642039174172,16.5457,149.51,149.44,0.26]
[1642039176176,16.5457,149.51,149.44,2.14858765]
[1642039176574,16.5457,149.51,149.44,2.39858765]
[1642039177075,16.5457,149.51,149.44,0.51]
[1642039177786,16.5457,149.51,149.44,1.88858765]
[1642039178586,2.676,149.5,149.44,1.88858765]
[1642039178789,10.0373,149.49,149.44,1.88858765]
[1642039178986,16.2973,149.49,149.43,1.88858765]
[1642039179186,16.5473,149.49,149.43,1.88858765]
[1642039179890,16.5473,149.49,149.42,79.79268765]
[1642039180788,16.5473,149.49,149.42,77.9041]
[1642039181689,16.2873,149.49,149.42,77.9041]
[1642039182090,16.0373,149.49,149.42,77.9041]
[1642039182889,0.26,149.48,149.42,90.6164]
[1642039185695,0.26,149.48,149.42,80.5801]
[1642039186795,10.2978,149.48,149.42,80.5801]
[1642039186997,6.0,149.47,149.42,80.5801]
[1642039187297,6.25,149.47,149.42,80.5801]
[1642039187495,0.26,149.46,149.42,80.5801]
[1642039188497,0.25,149.47,149.42,80.5801]
[1642039188697,0.26,149.48,149.42,80.5801]
[1642039192332,16.287,149.49,149.42,80.5801]
[1642039192532,0.25,149.49,149.43,0.26]
[1642039192731,6.0,149.48,149.44,2.676]
[1642039192933,6.0,149.49,149.44,2.676]
[1642039193131,6.51,149.49,149.44,2.676]
[1642039193631,6.25,149.49,149.44,2.676]
[1642039193835,0.25,149.49,149.44,2.676]
[1642039194434,6.25,149.5,149.44,2.676]
[1642039195032,6.0,149.49,149.45,23.61210018]
[1642039195332,0.25,149.49,149.45,23.61210018]
[1642039196631,6.51,149.51,149.45,23.61210018]
[1642039196835,6.51,149.51,149.45,33.64640018]
[1642039199133,6.51,149.51,149.45,10.0343]
[1642039200433,6.51,149.51,149.45,34.3873]
[1642039200635,6.0,149.51,149.45,10.0343]
[1642039200837,6.0,149.52,149.45,10.0343]
[1642039201039,6.0,149.54,149.45,10.0343]
[1642039201239,0.26,149.51,149.45,10.0343]
[1642039201838,6.26,149.52,149.45,10.0343]
[1642039202038,6.51,149.52,149.45,10.0343]
[1642039202638,8.31477668,149.52,149.45,10.0343]
[1642039203753,6.25,149.52,149.45,10.0343]
[1642039204452,8.05477668,149.52,149.45,10.0343]
[1642039204854,18.08977668,149.52,149.44,12.7111]
[1642039205254,0.26,149.51,149.44,12.7111]
[1642039205854,0.26,149.51,149.45,24.2311]
[1642039209379,0.26,149.51,149.45,34.2655]
[1642039209580,6.25,149.52,149.45,34.2655]
[1642039209780,6.25,149.52,149.46,0.26]
[1642039209980,6.25,149.52,149.46,2.934]
[1642039210185,6.25,149.52,149.46,3.184]
[1642039210380,0.25,149.52,149.46,3.184]
[1642039210780,6.0,149.53,149.46,13.2174]
[1642039210980,6.0,149.53,149.46,12.9574]
[1642039211184,0.26,149.52,149.46,12.7074]
[1642039212883,6.25,149.53,149.46,12.7074]
[1642039213085,6.25,149.53,149.47,0.26]
[1642039213585,0.26,149.52,149.46,12.7074]
[1642039213783,0.26,149.52,149.45,26.9051]
[1642039213983,0.26,149.52,149.45,24.2311]
[1642039214183,0.26,149.52,149.44,11.92318765]
[1642039215485,10.2948,149.52,149.44,11.92318765]
[1642039215689,10.5448,149.52,149.44,11.92318765]
[1642039215888,6.0,149.51,149.44,10.0346]
[1642039216086,6.0,149.51,149.45,23.7916]
[1642039216285,0.26,149.5,149.45,24.0416]
[1642039216585,0.26,149.5,149.45,34.0759]
[1642039217084,6.0,149.5,149.45,34.0759]
[1642039217285,9.5,149.54,149.46,0.26]
[1642039217486,9.5,149.54,149.46,6.26]
[1642039217786,9.5,149.54,149.48,10.0319]
[1642039217989,9.5,149.54,149.49,0.26]
[1642039218189,1.89928047,149.55,149.49,0.26]
[1642039218390,1.89928047,149.57,149.49,0.26]
[1642039218588,0.25,149.55,149.49,0.26]
[1642039218789,6.0,149.56,149.5,10.0305]
[1642039218988,0.25,149.56,149.51,0.26]
[1642039219790,9.5,149.58,149.51,0.26]
[1642039219988,1.89928047,149.59,149.49,2.934]
[1642039220189,1.89928047,149.59,149.51,10.0301]
[1642039220390,1.89928047,149.59,149.52,27.6989]
[1642039220592,1.89928047,149.59,149.53,24.70758118]
[1642039220894,1.89928047,149.59,149.54,0.26]
[1642039221094,1.89928047,149.61,149.54,0.26]
[1642039221492,2.14928047,149.61,149.54,0.26]
[1642039221792,0.26,149.6,149.52,27.4389]
[1642039221995,6.26,149.6,149.52,24.7649]
[1642039222194,6.26,149.6,149.52,25.0149]
[1642039222594,6.26,149.6,149.52,24.7649]
[1642039222795,16.2895,149.6,149.52,58.28394249]
[1642039223194,16.5395,149.6,149.52,58.28394249]
[1642039223995,16.5395,149.6,149.52,58.53394249]
[1642039224194,16.5395,149.6,149.53,2.934]
[1642039224595,16.5395,149.6,149.53,12.9631]
[1642039225595,16.5395,149.6,149.53,2.674]
[1642039227299,6.51,149.6,149.53,12.703]
[1642039227497,0.51,149.6,149.54,0.26]
[1642039227700,0.26,149.6,149.54,0.26]
[1642039227898,0.26,149.6,149.54,25.1153]
[1642039228097,6.26,149.6,149.54,25.1153]
[1642039228298,6.25,149.6,149.54,25.1153]
[1642039229701,19.529,149.61,149.54,25.1153]
[1642039229906,0.26,149.6,149.54,25.1153]
[1642039231200,0.26,149.6,149.54,25.3653]
[1642039231406,0.25,149.61,149.54,35.3936]
[1642039231603,10.028,149.63,149.54,35.3936]
[1642039231803,1.89928047,149.64,149.54,35.3936]
[1642039232002,1.89928047,149.64,149.55,6.0]
[1642039232302,1.89928047,149.65,149.56,66.89]
[1642039232502,1.89928047,149.65,149.57,29.2332]
[1642039232702,1.89928047,149.65,149.58,37.66135839]
[1642039232903,1.89928047,149.65,149.58,37.92135839]
[1642039233103,1.89928047,149.65,149.59,6.0]
[1642039233304,1.89928047,149.65,149.59,72.82]
[1642039233505,1.89928047,149.69,149.6,0.26]
[1642039233703,1.89928047,149.69,149.6,22.8424]
[1642039234229,1.89928047,149.69,149.6,23.0924]
[1642039234628,1.89928047,149.69,149.6,22.8424]
[1642039234831,2.672,149.7,149.61,2.672]
[1642039235030,2.672,149.7,149.6,22.5824]
[1642039235031,17.56477668,149.69,149.6,22.5824]
[1642039235228,2.672,149.68,149.6,22.5824]
[1642039235428,0.26,149.67,149.6,22.5824]
[1642039235629,6.26,149.67,149.6,22.5824]
[1642039235831,10.0262,149.65,149.6,22.5824]
[1642039236032,10.0262,149.65,149.58,74.3974]
[1642039236232,8.933,149.64,149.55,26.6357]
[1642039236430,9.5,149.63,149.55,2.672]
[1642039236831,10.0292,149.61,149.55,2.672]
[1642039237031,6.0,149.62,149.56,27.43081047]
[1642039237236,0.25,149.61,149.57,2.673]
[1642039237437,0.25,149.61,149.57,0.26]
[1642039238235,10.028,149.63,149.57,0.26]
[1642039238434,6.51,149.64,149.57,0.26]
[1642039239035,0.51,149.64,149.57,0.26]
[1642039239236,0.26,149.64,149.57,0.26]
[1642039239435,10.027,149.64,149.57,0.26]
[1642039239735,10.277,149.64,149.57,0.26]
[1642039240838,10.277,149.64,149.57,12.9593]
[1642039241242,10.277,149.64,149.57,2.933]
[1642039244142,10.277,149.64,149.57,3.183]
[1642039245646,10.277,149.64,149.57,2.933]
[1642039245845,10.0286,149.62,149.57,2.673]
[1642039246145,10.2786,149.62,149.55,27.034]
[1642039246349,10.2786,149.62,149.56,0.26]
[1642039246545,10.2786,149.62,149.55,27.284]
[1642039246745,10.2786,149.62,149.55,51.05375518]
[1642039246946,0.26,149.61,149.55,51.05375518]
[1642039247547,0.26,149.61,149.55,61.08125518]
[1642039247950,0.26,149.62,149.55,61.08125518]
[1642039248151,6.25,149.63,149.55,61.08125518]
[1642039248351,11.39928047,149.65,149.56,0.26]
[1642039248551,11.39928047,149.65,149.57,2.673]
[1642039248753,11.39928047,149.65,149.57,2.923]
[1642039248956,11.39928047,149.65,149.59,10.0249]
[1642039249153,11.39928047,149.65,149.61,31.53045644]
[1642039249653,11.64928047,149.65,149.61,31.53045644]
[1642039249854,11.64928047,149.65,149.6,2.673]
[1642039250055,19.7762,149.65,149.58,0.26]
[1642039250957,19.7762,149.65,149.58,30.97249391]
[1642039251154,19.7762,149.65,149.58,31.22249391]
[1642039251557,6.26,149.64,149.58,31.22249391]
[1642039251757,6.51,149.64,149.58,31.22249391]
[1642039251954,6.25,149.64,149.58,31.22249391]
[1642039252156,6.25,149.64,149.58,0.51]
[1642039252786,6.25,149.64,149.58,0.26]
[1642039253785,16.2767,149.64,149.58,0.26]
[1642039255188,25.7767,149.64,149.58,0.26]
[1642039257791,15.75,149.64,149.58,0.26]
[1642039258596,15.75,149.64,149.58,10.2857]
[1642039258802,15.75,149.64,149.58,13.2087]
[1642039259993,15.75,149.64,149.58,3.183]
[1642039260896,15.75,149.64,149.58,0.51]
[1642039261294,15.75,149.64,149.58,0.26]
[1642039264494,15.75,149.64,149.58,10.2854]
[1642039264696,15.75,149.64,149.58,10.5354]
[1642039265494,17.64928047,149.64,149.58,10.5354]
[1642039265897,17.39928047,149.64,149.58,10.5354]
[1642039266094,11.39928047,149.64,149.58,10.5354]
[1642039267295,11.64928047,149.64,149.58,10.5354]
[1642039267497,11.64928047,149.64,149.59,2.673]
[1642039267694,11.64928047,149.64,149.59,2.923]
[1642039269095,9.75,149.64,149.59,2.923]
[1642039269296,9.75,149.64,149.6,0.26]
[1642039270399,9.75,149.64,149.59,2.673]
[1642039270597,9.75,149.64,149.55,12.7002]
[1642039270798,8.933,149.63,149.55,10.0272]
[1642039270998,15.5,149.63,149.56,2.673]
[1642039271199,15.75,149.63,149.56,2.673]
[1642039271601,11.64928047,149.63,149.57,23.56796994]
[1642039271999,11.64928047,149.63,149.58,0.26]
[1642039272704,9.75,149.63,149.58,0.26]
[1642039276607,9.75,149.63,149.58,10.2857]
[1642039277307,9.5,149.63,149.58,10.5357]
[1642039277507,9.75,149.63,149.58,10.5357]
[1642039277809,9.5,149.63,149.58,16.1837]
[1642039278007,9.5,149.63,149.58,18.8567]
[1642039280208,1.89928047,149.64,149.58,18.8567]
[1642039280413,1.89928047,149.64,149.58,85.6767]
[1642039280810,3.80479821,149.67,149.58,85.6767]
[1642039281010,3.80479821,149.69,149.59,24.0566]
[1642039281213,3.80479821,149.69,149.64,10.0213]
[1642039281416,3.80479821,149.69,149.65,0.26]
[1642039282013,3.80479821,149.69,149.64,0.26]
[1642039282211,0.25,149.69,149.64,0.26]
[1642039282612,9.75,149.7,149.64,0.26]
[1642039282813,9.75,149.7,149.64,10.2817]
[1642039283212,9.75,149.7,149.64,10.5317]
[1642039283413,9.5,149.7,149.64,77.3517]
[1642039283615,9.5,149.7,149.64,10.5317]
[1642039283813,6.0,149.69,149.64,10.2717]
[1642039284015,6.0,149.69,149.64,12.9437]
[1642039284417,6.0,149.71,149.64,12.9437]
[1642039284615,6.26,149.71,149.64,12.9437]
[1642039284815,6.51,149.71,149.64,12.9437]
[1642039285215,6.51,149.71,149.65,0.26]
[1642039290249,6.51,149.71,149.64,10.2717]
[1642039290450,6.51,149.71,149.64,12.9437]
[1642039293556,6.51,149.71,149.65,10.281]
[1642039293955,6.51,149.71,149.65,10.021]
[1642039295056,9.5,149.72,149.65,10.021]
[1642039295257,22.5165,149.74,149.67,10.0194]
[1642039295556,9.5,149.75,149.69,30.43867662]
[1642039296556,9.75,149.75,149.69,30.43867662]
[1642039297958,2.93,149.74,149.69,30.43867662]
[1642039298160,8.92,149.74,149.69,30.43867662]
[1642039299158,6.25,149.74,149.69,30.43867662]
[1642039300359,6.0,149.74,149.69,30.43867662]
[1642039300559,9.5,149.75,149.69,30.43867662]
[1642039300762,9.5,149.75,149.7,2.67]
[1642039300965,9.5,149.75,149.7,2.93]
[1642039302059,9.75,149.75,149.7,2.93]
[1642039302260,9.5,149.75,149.7,2.93]
[1642039304264,9.75,149.75,149.7,2.93]
[1642039305467,9.5,149.75,149.7,12.9476]
[1642039308373,9.5,149.75,149.7,13.1976]
[1642039309472,23.1648,149.79,149.7,13.1976]
[1642039309672,23.1648,149.79,149.73,10.0153]
[1642039309872,6.0,149.78,149.74,2.67]
[1642039310073,6.0,149.78,149.73,10.0153]
[1642039310074,6.0,149.79,149.73,10.2653]
[1642039310272,3.80479821,149.8,149.73,10.2653]
[1642039310674,4.05479821,149.8,149.73,10.2653]
[1642039311075,3.80479821,149.8,149.73,10.2653]
[1642039311274,0.26,149.79,149.73,10.2653]
[1642039311573,6.26,149.79,149.73,10.2653]
[1642039312072,6.0,149.78,149.73,10.2653]
[1642039312700,6.0,149.8,149.73,10.2653]
[1642039312897,16.0162,149.8,149.73,10.2653]
[1642039313097,16.2662,149.8,149.73,10.2653]
[1642039313700,16.2662,149.8,149.72,2.67]
[1642039313896,16.2662,149.8,149.72,0.25]
[1642039313897,14.75187668,149.79,149.72,0.25]
[1642039314098,6.0,149.78,149.72,0.25]
[1642039314398,0.26,149.77,149.72,0.25]
[1642039315199,0.26,149.77,149.71,23.4433]
[1642039317299,16.2678,149.78,149.71,23.4433]
[1642039318498,16.2678,149.78,149.71,33.4603]
[1642039318699,0.26,149.77,149.71,33.4603]
[1642039319701,0.26,149.77,149.71,23.4433]
[1642039321002,10.0182,149.77,149.71,23.4433]
[1642039321203,6.0,149.76,149.71,23.4433]
[1642039321405,6.0,149.76,149.72,0.26]
[1642039323005,0.25,149.76,149.7,12.6877]
[1642039323205,0.25,149.76,149.67,95.1897]
[1642039323206,0.26,149.75,149.67,97.8597]
[1642039323407,9.5,149.74,149.67,95.1897]
[1642039323707,6.0,149.73,149.67,95.1897]
[1642039323907,6.26,149.73,149.67,95.1897]
[1642039324104,6.51,149.73,149.67,72.3528]
[1642039325305,6.51,149.73,149.67,82.6225]
[1642039325505,6.26,149.73,149.67,82.6225]
[1642039325906,6.26,149.73,149.68,2.672]
[1642039326305,6.51,149.73,149.68,2.672]
[1642039326508,6.51,149.73,149.68,2.922]
[1642039329410,6.51,149.73,149.68,0.25]
[1642039329810,6.51,149.73,149.67,82.6225]
[1642039330011,6.51,149.73,149.67,10.2697]
[1642039330312,6.51,149.73,149.66,2.67]
[1642039330514,16.01,149.73,149.64,107.99645389]
[1642039330712,2.672,149.72,149.64,105.32445389]
[1642039330912,0.26,149.71,149.64,105.32445389]
[1642039331113,6.26,149.71,149.64,105.32445389]
[1642039331311,10.0232,149.7,149.64,105.32445389]
[1642039331511,6.0,149.69,149.64,105.32445389]
[1642039332717,6.25,149.69,149.64,105.32445389]
[1642039334919,0.25,149.69,149.64,105.32445389]
[1642039335319,6.51,149.71,149.64,105.32445389]
[1642039335522,6.51,149.71,149.65,2.672]
[1642039335921,6.0,149.71,149.65,2.672]
[1642039336121,16.196,149.75,149.65,2.922]
[1642039336321,16.196,149.75,149.66,23.2547]
[1642039336522,6.0,149.74,149.67,2.67]
[1642039336722,6.0,149.74,149.67,2.92]
[1642039336925,6.0,149.74,149.68,0.26]
[1642039337923,6.0,149.74,149.7,10.0177]
[1642039338124,6.0,149.74,149.7,42.18423365]
[1642039338625,6.0,149.74,149.7,10.0177]
[1642039338850,0.26,149.73,149.67,2.67]
[1642039339025,10.2814,149.73,149.67,2.67]
[1642039339226,0.51,149.73,149.65,2.672]
[1642039339530,0.51,149.73,149.65,25.6008]
[1642039339724,0.25,149.73,149.66,26.90194305]
[1642039339926,0.51,149.73,149.67,22.6758]
[1642039340128,0.25,149.73,149.67,22.6758]
[1642039340325,0.26,149.73,149.67,22.9258]
[1642039342627,0.26,149.73,149.67,22.6758]
[1642039342925,0.26,149.73,149.67,22.9258]
[1642039343225,0.26,149.73,149.67,22.6758]
[1642039343424,0.26,149.73,149.67,22.9258]
[1642039346528,0.26,149.73,149.67,32.9455]
[1642039347530,30.1447,149.74,149.67,32.9455]
[1642039347729,15.75,149.74,149.68,0.26]
[1642039347929,15.75,149.74,149.68,10.2784]
[1642039348128,15.75,149.74,149.68,10.5284]
[1642039349130,15.75,149.74,149.68,13.1984]
[1642039351031,15.75,149.74,149.68,12.9384]
[1642039351633,15.75,149.74,149.69,0.26]
[1642039352837,15.5,149.74,149.69,0.26]
[1642039353035,15.5,149.74,149.69,10.2782]
[1642039353236,15.5,149.74,149.69,10.5282]
[1642039354065,15.5,149.74,149.69,10.2782]
[1642039354264,15.5,149.74,149.69,0.51]
[1642039354465,15.5,149.74,149.68,2.67]
[1642039354466,0.26,149.73,149.68,2.67]
[1642039354665,0.26,149.73,149.66,26.90194305]
[1642039355470,10.2813,149.73,149.65,2.67]
[1642039355668,12.172,149.72,149.63,2.672]
[1642039355869,18.172,149.72,149.62,24.2562]
[1642039356068,0.26,149.71,149.62,24.2562]
[1642039356268,12.172,149.7,149.62,24.2562]
[1642039356468,0.26,149.69,149.64,98.35406957]
[1642039356671,6.0,149.69,149.64,98.35406957]
[1642039357069,6.0,149.69,149.64,98.60406957]
[1642039357467,6.0,149.69,149.65,0.26]
[1642039358572,6.0,149.71,149.65,0.26]
[1642039358771,6.25,149.71,149.65,24.3962]
[1642039359170,6.25,149.71,149.65,24.6462]
[1642039360974,6.25,149.71,149.65,37.3392]
[1642039365776,6.0,149.71,149.65,37.3392]
[1642039366178,22.5073,149.74,149.66,6.0]
[1642039366382,9.5,149.76,149.68,10.019]
[1642039366579,0.25,149.74,149.69,22.857]
[1642039366779,8.67,149.75,149.7,27.4948298]
[1642039366983,6.0,149.75,149.7,27.4948298]
[1642039367181,6.0,149.75,149.71,0.26]
[1642039367381,6.0,149.76,149.72,10.0162]
[1642039367583,6.0,149.77,149.72,10.0162]
[1642039367785,6.0,149.77,149.73,0.26]
[1642039368383,6.25,149.77,149.72,0.26]
[1642039368586,6.25,149.77,149.73,10.0153]
[1642039368983,6.25,149.77,149.74,0.26]
[1642039369584,2.74851018,149.76,149.74,0.26]
[1642039369784,2.99851018,149.76,149.74,0.26]
[1642039369983,6.0,149.75,149.74,0.26]